[Event "*** Titled Tuesday Blitz"]
[Site "Chess.com"]
[Date "2019.04.02"]
[Round "3"]
[White "grzechu96"]
[Black "mbojan"]
[Result "1-0"]
[WhiteElo "2571"]
[BlackElo "2501"]
[TimeControl "180+2"]
[EndTime "14:38:26 PDT"]
[Termination "grzechu96 won by resignation"]

1. e4 {[%clk 0:03:01.9]} 1... g6 {[%clk 0:03:01.9]} 2. d4 {[%clk 0:03:01.2]}
2... Bg7 {[%clk 0:03:03.4]} 3. Nc3 {[%clk 0:02:58.6]} 3... d6 {[%clk 0:03:04.6]}
4. Be3 {[%clk 0:02:57.1]} 4... a6 {[%clk 0:03:05.4]} 5. a4 {[%clk 0:02:57.2]}
5... b6 {[%clk 0:03:04.4]} 6. h3 {[%clk 0:02:57.1]} 6... Nd7 {[%clk 0:03:04.5]}
7. g4 {[%clk 0:02:58]} 7... e6 {[%clk 0:03:05.5]} 8. Bg2 {[%clk 0:02:59.3]} 8...
Bb7 {[%clk 0:03:06.1]} 9. Nge2 {[%clk 0:02:59.6]} 9... h6 {[%clk 0:03:07.1]} 10.
Qd2 {[%clk 0:03:00.3]} 10... Ne7 {[%clk 0:03:08.2]} 11. f4 {[%clk 0:02:55.6]}
11... Nc6 {[%clk 0:02:49.4]} 12. O-O {[%clk 0:02:51]} 12... Nb4 {[%clk
0:02:50.1]} 13. a5 {[%clk 0:02:36.7]} 13... O-O {[%clk 0:02:37.5]} 14. d5 {[%clk
0:01:55.4]} 14... exd5 {[%clk 0:02:34.4]} 15. exd5 {[%clk 0:01:57.3]} 15... Nc5
{[%clk 0:02:31.1]} 16. Nd1 {[%clk 0:01:49.9]} 16... bxa5 {[%clk 0:01:35.1]} 17.
Rxa5 {[%clk 0:01:49.1]} 17... Rb8 {[%clk 0:01:28.2]} 18. Qxb4 {[%clk 0:01:39.4]}
18... Bxd5 {[%clk 0:01:29]} 19. Qd2 {[%clk 0:01:39.7]} 19... Bxg2 {[%clk
0:01:29.8]} 20. Kxg2 {[%clk 0:01:41.1]} 20... Ne4 {[%clk 0:01:16]} 21. Qd3
{[%clk 0:01:38.2]} 21... Re8 {[%clk 0:01:17.1]} 22. b3 {[%clk 0:01:35]} 22...
Qe7 {[%clk 0:01:15.2]} 23. Ng3 {[%clk 0:01:22.8]} 23... Nxg3 {[%clk 0:00:38.9]}
24. Kxg3 {[%clk 0:01:24.7]} 24... c5 {[%clk 0:00:39.8]} 25. Rxa6 {[%clk
0:01:17.1]} 25... d5 {[%clk 0:00:28.3]} 26. Qxd5 {[%clk 0:00:48.2]} 26... Rbd8
{[%clk 0:00:28.1]} 27. Qf3 {[%clk 0:00:45.8]} 27... Qc7 {[%clk 0:00:10.4]} 28.
Nf2 {[%clk 0:00:31]} 28... c4 {[%clk 0:00:10.7]} 29. Rc6 {[%clk 0:00:27.3]}
29... Qe7 {[%clk 0:00:09.1]} 30. Bc5 {[%clk 0:00:27]} 30... Qb7 {[%clk
0:00:09.2]} 31. bxc4 {[%clk 0:00:19.5]} 31... Qb2 {[%clk 0:00:06.7]} 32. Rd6
{[%clk 0:00:12.6]} 32... Qxc2 {[%clk 0:00:07.2]} 33. Rxd8 {[%clk 0:00:13.6]}
33... Rxd8 {[%clk 0:00:09.1]} 34. Rd1 {[%clk 0:00:12.6]} 34... Rxd1 {[%clk
0:00:09.4]} 35. Qxd1 {[%clk 0:00:13.7]} 35... Qxc4 {[%clk 0:00:11]} 36. Be3
{[%clk 0:00:15.2]} 36... Qb3 {[%clk 0:00:11.8]} 37. Qd3 {[%clk 0:00:16.3]} 37...
Qe6 {[%clk 0:00:12]} 38. Qe4 {[%clk 0:00:16.7]} 38... Qd7 {[%clk 0:00:12.9]} 39.
Kg2 {[%clk 0:00:15.4]} 39... Kh7 {[%clk 0:00:14.3]} 40. f5 {[%clk 0:00:15.4]}
40... gxf5 {[%clk 0:00:13.7]} 41. Qxf5+ {[%clk 0:00:16.4]} 41... Qxf5 {[%clk
0:00:14.5]} 42. gxf5 {[%clk 0:00:18.3]} 42... h5 {[%clk 0:00:15.8]} 43. Kf3
{[%clk 0:00:19.5]} 43... Be5 {[%clk 0:00:16.8]} 44. Ke4 {[%clk 0:00:20]} 44...
Bc7 {[%clk 0:00:17.8]} 45. Nd3 {[%clk 0:00:21.1]} 45... Kg7 {[%clk 0:00:19.2]}
46. Bf4 {[%clk 0:00:22.4]} 46... Bd8 {[%clk 0:00:20]} 47. Ne5 {[%clk 0:00:20.5]}
47... Ba5 {[%clk 0:00:18.3]} 48. Nf3 {[%clk 0:00:21.3]} 48... Bb4 {[%clk
0:00:18.2]} 49. Be5+ {[%clk 0:00:21.6]} 49... Kh6 {[%clk 0:00:18.8]} 50. Bf4+
{[%clk 0:00:22.5]} 50... Kg7 {[%clk 0:00:19.9]} 51. Bg5 {[%clk 0:00:24.1]} 51...
Bc5 {[%clk 0:00:20.3]} 52. Kd5 {[%clk 0:00:25]} 52... Ba7 {[%clk 0:00:21.1]} 53.
Ne5 {[%clk 0:00:26.3]} 53... Bb8 {[%clk 0:00:21.9]} 54. Nd7 {[%clk 0:00:25.8]}
54... Bc7 {[%clk 0:00:23]} 55. Nc5 {[%clk 0:00:26.1]} 55... Bh2 {[%clk
0:00:23.8]} 56. Ne4 {[%clk 0:00:27.3]} 56... Bb8 {[%clk 0:00:23.9]} 57. Kc6
{[%clk 0:00:28.3]} 57... Kf8 {[%clk 0:00:24.2]} 58. Kd7 {[%clk 0:00:29.5]} 58...
Bh2 {[%clk 0:00:25.3]} 59. Bh6+ {[%clk 0:00:30.2]} 59... Kg8 {[%clk 0:00:26.2]}
60. Nf6+ {[%clk 0:00:30.3]} 60... Kh8 {[%clk 0:00:27.7]} 61. Nxh5 {[%clk
0:00:31.2]} 61... Be5 {[%clk 0:00:26.8]} 62. Bf4 {[%clk 0:00:30.8]} 62... Bc3
{[%clk 0:00:23.6]} 63. Ng3 {[%clk 0:00:29.4]} 63... Kg8 {[%clk 0:00:24.7]} 64.
Ne4 {[%clk 0:00:30]} 64... Ba1 {[%clk 0:00:26.2]} 65. Bg5 {[%clk 0:00:29.9]}
65... Kg7 {[%clk 0:00:27.5]} 66. Ke7 {[%clk 0:00:29.4]} 66... Kg8 {[%clk
0:00:29.1]} 67. Bf6 {[%clk 0:00:30.5]} 67... Bxf6+ {[%clk 0:00:25]} 68. Nxf6+
{[%clk 0:00:32.4]} 68... Kg7 {[%clk 0:00:26]} 69. Ng4 {[%clk 0:00:29.8]} 69...
Kh8 {[%clk 0:00:27.9]} 70. Kxf7 {[%clk 0:00:30.7]} 70... Kh7 {[%clk 0:00:29.6]}
71. Kf6 {[%clk 0:00:31.5]} 71... Kh8 {[%clk 0:00:31.5]} 72. Kg6 {[%clk
0:00:32.6]} 72... Kg8 {[%clk 0:00:33.4]} 73. f6 {[%clk 0:00:34.2]} 73... Kf8
{[%clk 0:00:35.3]} 74. Nh6 {[%clk 0:00:35.2]} 74... Ke8 {[%clk 0:00:36.3]} 75.
Nf5 {[%clk 0:00:36.9]} 75... Kf8 {[%clk 0:00:38.2]} 76. Nd4 {[%clk 0:00:37.4]}
76... Ke8 {[%clk 0:00:40]} 77. f7+ {[%clk 0:00:38.8]} 77... Kf8 {[%clk
0:00:41.9]} 78. Ne6+ {[%clk 0:00:40.3]} 78... Ke7 {[%clk 0:00:43.8]} 79. f8=Q+
{[%clk 0:00:41.6]} 79... Kxe6 {[%clk 0:00:45.7]} 80. Qf6+ {[%clk 0:00:42.9]}
80... Kd5 {[%clk 0:00:47.2]} 81. h4 {[%clk 0:00:44.4]} 81... Ke4 {[%clk
0:00:49.1]} 1-0

[Event "*** Titled Tuesday Blitz"]
[Site "Chess.com"]
[Date "2019.04.02"]
[Round "3"]
[White "Aemulus20"]
[Black "Alexander_Donchenko"]
[Result "0-1"]
[WhiteElo "2502"]
[BlackElo "2839"]
[TimeControl "180+2"]
[EndTime "14:38:33 PDT"]
[Termination "Alexander_Donchenko won on time"]

1. e4 {[%clk 0:03:01.9]} 1... e5 {[%clk 0:02:59]} 2. Nf3 {[%clk 0:03:02.2]} 2...
Nf6 {[%clk 0:02:59.6]} 3. d4 {[%clk 0:02:52.9]} 3... Nxe4 {[%clk 0:02:57.4]} 4.
Bd3 {[%clk 0:02:54.1]} 4... d5 {[%clk 0:02:57.2]} 5. Nxe5 {[%clk 0:02:54.8]}
5... Nd7 {[%clk 0:02:57.2]} 6. Nxd7 {[%clk 0:02:55.7]} 6... Bxd7 {[%clk
0:02:57.6]} 7. O-O {[%clk 0:02:55]} 7... Be7 {[%clk 0:02:58.2]} 8. c4 {[%clk
0:02:52.7]} 8... Nf6 {[%clk 0:02:56.9]} 9. cxd5 {[%clk 0:02:21.7]} 9... Nxd5
{[%clk 0:02:57.7]} 10. Nc3 {[%clk 0:02:22.8]} 10... Nf6 {[%clk 0:02:55.1]} 11.
Re1 {[%clk 0:02:12.9]} 11... O-O {[%clk 0:02:55.7]} 12. d5 {[%clk 0:02:02.1]}
12... h6 {[%clk 0:02:53.6]} 13. h3 {[%clk 0:01:59.2]} 13... Bd6 {[%clk
0:02:53.6]} 14. Qf3 {[%clk 0:01:58.5]} 14... Re8 {[%clk 0:02:47.8]} 15. Be3
{[%clk 0:01:58.1]} 15... a6 {[%clk 0:02:47.6]} 16. Bd4 {[%clk 0:01:58.7]} 16...
Bf8 {[%clk 0:02:32.9]} 17. Rxe8 {[%clk 0:01:45.3]} 17... Nxe8 {[%clk 0:02:34]}
18. Ne4 {[%clk 0:01:27.5]} 18... c6 {[%clk 0:02:17.7]} 19. Bc4 {[%clk
0:00:42.8]} 19... cxd5 {[%clk 0:01:32.7]} 20. Bxd5 {[%clk 0:00:44.7]} 20... Be6
{[%clk 0:01:21.9]} 21. Bxe6 {[%clk 0:00:37.6]} 21... fxe6 {[%clk 0:01:23.8]} 22.
Rd1 {[%clk 0:00:37.4]} 22... Qc7 {[%clk 0:01:17.2]} 23. Bc3 {[%clk 0:00:32.1]}
23... Rd8 {[%clk 0:01:16.8]} 24. Re1 {[%clk 0:00:32.3]} 24... Qf7 {[%clk
0:01:17.2]} 25. Qg4 {[%clk 0:00:31.9]} 25... Rd5 {[%clk 0:01:13.6]} 26. Re3
{[%clk 0:00:30.3]} 26... Rf5 {[%clk 0:01:10.7]} 27. Ng3 {[%clk 0:00:18.3]} 27...
Rxf2 {[%clk 0:01:05.9]} 28. Qxe6 {[%clk 0:00:17.5]} 28... Nd6 {[%clk 0:01:03.3]}
29. Qxf7+ {[%clk 0:00:16.5]} 29... Rxf7 {[%clk 0:01:05.2]} 30. Rd3 {[%clk
0:00:15.7]} 30... Nb5 {[%clk 0:01:00]} 31. Ne4 {[%clk 0:00:15.9]} 31... Nxc3
{[%clk 0:01:00]} 32. Rxc3 {[%clk 0:00:17.8]} 32... Rf4 {[%clk 0:00:58.4]} 33.
Nf2 {[%clk 0:00:10.3]} 33... Bb4 {[%clk 0:00:54.6]} 34. Rc8+ {[%clk 0:00:10.2]}
34... Rf8 {[%clk 0:00:55.8]} 35. Rxf8+ {[%clk 0:00:10.1]} 35... Kxf8 {[%clk
0:00:57.7]} 36. Kf1 {[%clk 0:00:11.6]} 36... Bc5 {[%clk 0:00:57.7]} 37. Nd3
{[%clk 0:00:13]} 37... Bd4 {[%clk 0:00:59.1]} 38. Ke2 {[%clk 0:00:14.1]} 38...
Ke7 {[%clk 0:01:00]} 39. Kf3 {[%clk 0:00:15.7]} 39... Kd6 {[%clk 0:00:56.8]} 40.
Ke4 {[%clk 0:00:17.1]} 40... Bf6 {[%clk 0:00:58.4]} 41. b3 {[%clk 0:00:18.5]}
41... Bc3 {[%clk 0:00:53.6]} 42. g4 {[%clk 0:00:18.9]} 42... Bf6 {[%clk
0:00:53.9]} 43. Nb4 {[%clk 0:00:11.5]} 43... Kc5 {[%clk 0:00:52.1]} 44. Nd3+
{[%clk 0:00:12.6]} 44... Kd6 {[%clk 0:00:53.6]} 45. Nb4 {[%clk 0:00:12.9]} 45...
Be5 {[%clk 0:00:51.1]} 46. Nd3 {[%clk 0:00:13.9]} 46... Bc3 {[%clk 0:00:52.6]}
47. Nf4 {[%clk 0:00:15]} 47... b5 {[%clk 0:00:45.5]} 48. Kf5 {[%clk 0:00:14.6]}
48... Kc5 {[%clk 0:00:43.5]} 49. Kg6 {[%clk 0:00:11.7]} 49... a5 {[%clk
0:00:39.8]} 50. h4 {[%clk 0:00:11.8]} 50... a4 {[%clk 0:00:38.4]} 51. h5 {[%clk
0:00:10]} 51... Ba1 {[%clk 0:00:24.5]} 52. Ne6+ {[%clk 0:00:10.5]} 52... Kb4
{[%clk 0:00:25.7]} 53. bxa4 {[%clk 0:00:11.2]} 53... bxa4 {[%clk 0:00:26.2]} 54.
Nxg7 {[%clk 0:00:12.7]} 54... Ka3 {[%clk 0:00:27.4]} 55. Nf5 {[%clk 0:00:12.4]}
55... Kxa2 {[%clk 0:00:27.9]} 56. Nxh6 {[%clk 0:00:11]} 56... a3 {[%clk
0:00:28.8]} 57. Nf5 {[%clk 0:00:12.6]} 57... Kb3 {[%clk 0:00:27.7]} 58. h6
{[%clk 0:00:13.5]} 58... Bh8 {[%clk 0:00:25.3]} 59. Kh7 {[%clk 0:00:12.3]} 59...
a2 {[%clk 0:00:25]} 60. Kxh8 {[%clk 0:00:13.3]} 60... a1=Q+ {[%clk 0:00:26.2]}
61. Ng7 {[%clk 0:00:12.7]} 61... Qf6 {[%clk 0:00:25.8]} 62. Kh7 {[%clk
0:00:09.7]} 62... Kc4 {[%clk 0:00:25.4]} 63. Nf5 {[%clk 0:00:09.7]} 63... Qf7+
{[%clk 0:00:24.2]} 64. Ng7 {[%clk 0:00:09.9]} 64... Qf4 {[%clk 0:00:17.9]} 65.
Kg6 {[%clk 0:00:05.5]} 65... Qxg4+ {[%clk 0:00:18.7]} 66. Kf7 {[%clk 0:00:06.6]}
66... Qf4+ {[%clk 0:00:17.5]} 67. Kg6 {[%clk 0:00:07.9]} 67... Qe4+ {[%clk
0:00:18.4]} 68. Kg5 {[%clk 0:00:05.4]} 68... Kd5 {[%clk 0:00:19]} 69. Nh5 {[%clk
0:00:04.9]} 69... Ke5 {[%clk 0:00:19]} 0-1

[Event "*** Titled Tuesday Blitz"]
[Site "Chess.com"]
[Date "2019.04.02"]
[Round "3"]
[White "mlchen"]
[Black "LawrenceTrent"]
[Result "1-0"]
[WhiteElo "2418"]
[BlackElo "2542"]
[TimeControl "180+2"]
[EndTime "14:38:59 PDT"]
[Termination "mlchen won by resignation"]

1. e4 {[%clk 0:03:01.9]} 1... c5 {[%clk 0:03:00]} 2. c3 {[%clk 0:03:02.4]} 2...
d5 {[%clk 0:02:59.1]} 3. exd5 {[%clk 0:03:03]} 3... Qxd5 {[%clk 0:03:00]} 4. Nf3
{[%clk 0:03:04.4]} 4... Nc6 {[%clk 0:02:59.8]} 5. Be2 {[%clk 0:03:00.9]} 5...
Bf5 {[%clk 0:02:58.3]} 6. d4 {[%clk 0:02:48.3]} 6... e6 {[%clk 0:02:58.2]} 7.
Na3 {[%clk 0:02:48.3]} 7... cxd4 {[%clk 0:02:54.2]} 8. Nb5 {[%clk 0:02:48.8]}
8... O-O-O {[%clk 0:02:49.1]} 9. Nbxd4 {[%clk 0:02:47.6]} 9... Nxd4 {[%clk
0:02:49.5]} 10. cxd4 {[%clk 0:02:48.7]} 10... Kb8 {[%clk 0:02:45]} 11. O-O
{[%clk 0:02:46.3]} 11... Bd6 {[%clk 0:02:42.2]} 12. Be3 {[%clk 0:02:40.5]} 12...
Nf6 {[%clk 0:02:42.7]} 13. Rc1 {[%clk 0:02:41]} 13... Be4 {[%clk 0:02:41]} 14.
Nd2 {[%clk 0:01:55.5]} 14... h5 {[%clk 0:01:20.5]} 15. Bc4 {[%clk 0:01:48.1]}
15... Qf5 {[%clk 0:01:20.8]} 16. Nxe4 {[%clk 0:01:45.8]} 16... Qxe4 {[%clk
0:01:21.4]} 17. Bd3 {[%clk 0:01:31]} 17... Qh4 {[%clk 0:01:19.9]} 18. g3 {[%clk
0:01:20]} 18... Qh3 {[%clk 0:01:20.9]} 19. Qf3 {[%clk 0:01:20.8]} 19... h4
{[%clk 0:01:14]} 20. Bf4 {[%clk 0:00:43]} 20... hxg3 {[%clk 0:01:06.3]} 21. Qxg3
{[%clk 0:00:37.1]} 21... Bxf4 {[%clk 0:01:00.8]} 22. Qxf4+ {[%clk 0:00:36.4]}
22... Ka8 {[%clk 0:01:02.1]} 23. Qg3 {[%clk 0:00:30.6]} 23... Qxg3+ {[%clk
0:00:50.4]} 24. hxg3 {[%clk 0:00:30.3]} 24... Rxd4 {[%clk 0:00:52.3]} 25. Be2
{[%clk 0:00:28.5]} 25... Kb8 {[%clk 0:00:52.8]} 26. Rfd1 {[%clk 0:00:28.9]}
26... Rhd8 {[%clk 0:00:52.6]} 27. Rxd4 {[%clk 0:00:30]} 27... Rxd4 {[%clk
0:00:54.5]} 28. Rc2 {[%clk 0:00:31.3]} 28... a6 {[%clk 0:00:54.7]} 29. f4 {[%clk
0:00:29.7]} 29... Ne4 {[%clk 0:00:53.6]} 30. Kg2 {[%clk 0:00:27.4]} 30... Nd6
{[%clk 0:00:50.9]} 31. Kf2 {[%clk 0:00:21.5]} 31... Rd5 {[%clk 0:00:39.8]} 32.
Bf3 {[%clk 0:00:21.5]} 32... Ra5 {[%clk 0:00:40.8]} 33. a3 {[%clk 0:00:21.8]}
33... g5 {[%clk 0:00:42]} 34. Rd2 {[%clk 0:00:18]} 34... Kc7 {[%clk 0:00:42.8]}
35. Rc2+ {[%clk 0:00:18.9]} 35... Kd7 {[%clk 0:00:44.2]} 36. Rd2 {[%clk
0:00:20.4]} 36... gxf4 {[%clk 0:00:45.1]} 37. gxf4 {[%clk 0:00:21.3]} 37... b6
{[%clk 0:00:36.2]} 38. Rc2 {[%clk 0:00:20.3]} 38... Rc5 {[%clk 0:00:36.5]} 39.
Rd2 {[%clk 0:00:21]} 39... Kc7 {[%clk 0:00:37.8]} 40. Ke2 {[%clk 0:00:17.1]}
40... a5 {[%clk 0:00:34.9]} 41. Kf2 {[%clk 0:00:17.3]} 41... Rb5 {[%clk
0:00:34]} 42. Rc2+ {[%clk 0:00:17.4]} 42... Kd8 {[%clk 0:00:35.3]} 43. Ke3
{[%clk 0:00:15.7]} 43... Rc5 {[%clk 0:00:35.1]} 44. Rd2 {[%clk 0:00:15.5]} 44...
Kc7 {[%clk 0:00:36.4]} 45. Kf2 {[%clk 0:00:16.9]} 45... b5 {[%clk 0:00:33]} 46.
Ke2 {[%clk 0:00:16.3]} 46... Rc4 {[%clk 0:00:30.9]} 47. Ke3 {[%clk 0:00:09.3]}
47... Nf5+ {[%clk 0:00:31.7]} 48. Ke2 {[%clk 0:00:09.9]} 48... Rxf4 {[%clk
0:00:31.4]} 49. Bg2 {[%clk 0:00:06]} 49... Rd4 {[%clk 0:00:28.3]} 50. Rc2+
{[%clk 0:00:07]} 50... Rc4 {[%clk 0:00:29.3]} 51. Rd2 {[%clk 0:00:08.3]} 51...
Nd6 {[%clk 0:00:27]} 52. Ke3 {[%clk 0:00:08.7]} 52... f5 {[%clk 0:00:24.3]} 53.
Bf3 {[%clk 0:00:09.6]} 53... Rc5 {[%clk 0:00:20.9]} 54. Rh2 {[%clk 0:00:10]}
54... Nc4+ {[%clk 0:00:20.7]} 55. Kd3 {[%clk 0:00:10.9]} 55... Nxb2+ {[%clk
0:00:21.3]} 56. Rxb2 {[%clk 0:00:10.9]} 56... Kb6 {[%clk 0:00:17.4]} 57. Rh2
{[%clk 0:00:11.2]} 57... Kc7 {[%clk 0:00:14.7]} 58. Rh7+ {[%clk 0:00:10.8]}
58... Kd6 {[%clk 0:00:15.9]} 59. Ra7 {[%clk 0:00:12.2]} 59... b4 {[%clk
0:00:16.2]} 60. axb4 {[%clk 0:00:13.4]} 60... axb4 {[%clk 0:00:17.4]} 61. Rb7
{[%clk 0:00:14.9]} 61... Rc3+ {[%clk 0:00:18.2]} 62. Ke2 {[%clk 0:00:16.4]}
62... Kc5 {[%clk 0:00:18.5]} 63. Re7 {[%clk 0:00:16.2]} 63... Kd6 {[%clk
0:00:19.1]} 64. Rb7 {[%clk 0:00:17]} 64... Rb3 {[%clk 0:00:20.4]} 65. Bh5 {[%clk
0:00:17.7]} 65... e5 {[%clk 0:00:17.4]} 66. Bf7 {[%clk 0:00:18]} 66... Rb2+
{[%clk 0:00:18]} 67. Kf3 {[%clk 0:00:19.1]} 67... Rb1 {[%clk 0:00:15.9]} 68. Bg6
{[%clk 0:00:19]} 68... e4+ {[%clk 0:00:15.2]} 69. Ke3 {[%clk 0:00:20]} 69...
Rb3+ {[%clk 0:00:15]} 70. Ke2 {[%clk 0:00:19.9]} 70... Ke5 {[%clk 0:00:15.4]}
71. Rb5+ {[%clk 0:00:20.6]} 71... Kd4 {[%clk 0:00:16.6]} 72. Bxf5 {[%clk
0:00:21.6]} 72... Rb2+ {[%clk 0:00:16.7]} 73. Kd1 {[%clk 0:00:21.1]} 73... e3
{[%clk 0:00:15.3]} 74. Bg4 {[%clk 0:00:19]} 74... b3 {[%clk 0:00:12]} 75. Rb8
{[%clk 0:00:19.6]} 75... Rd2+ {[%clk 0:00:12.7]} 76. Kc1 {[%clk 0:00:19.7]}
76... Rg2 {[%clk 0:00:13.5]} 77. Rxb3 {[%clk 0:00:19.1]} 77... Rxg4 {[%clk
0:00:13.4]} 78. Rb4+ {[%clk 0:00:20]} 78... Kd3 {[%clk 0:00:13.4]} 79. Rxg4
{[%clk 0:00:21.3]} 79... e2 {[%clk 0:00:14.8]} 80. Rg3+ {[%clk 0:00:22.7]} 1-0

[Event "*** Titled Tuesday Blitz"]
[Site "Chess.com"]
[Date "2019.04.02"]
[Round "3"]
[White "Witik"]
[Black "sofaceindisguise"]
[Result "0-1"]
[WhiteElo "2611"]
[BlackElo "2557"]
[TimeControl "180+2"]
[EndTime "14:39:02 PDT"]
[Termination "sofaceindisguise won by resignation"]

1. d4 {[%clk 0:03:01.9]} 1... Nf6 {[%clk 0:03:00.6]} 2. c4 {[%clk 0:03:02.7]}
2... e6 {[%clk 0:03:01.4]} 3. Nf3 {[%clk 0:03:03.7]} 3... d5 {[%clk 0:03:01.7]}
4. Nc3 {[%clk 0:03:04.5]} 4... Bb4 {[%clk 0:03:01.8]} 5. cxd5 {[%clk 0:03:03.4]}
5... exd5 {[%clk 0:03:02.1]} 6. Bg5 {[%clk 0:03:04.2]} 6... h6 {[%clk 0:03:00]}
7. Bh4 {[%clk 0:03:05]} 7... g5 {[%clk 0:02:58]} 8. Bg3 {[%clk 0:03:05.5]} 8...
Ne4 {[%clk 0:02:59.1]} 9. Nd2 {[%clk 0:03:06.4]} 9... Nxc3 {[%clk 0:02:51.5]}
10. bxc3 {[%clk 0:03:06.8]} 10... Bxc3 {[%clk 0:02:52.8]} 11. Rc1 {[%clk
0:03:08.4]} 11... Bxd4 {[%clk 0:02:52.4]} 12. Qa4+ {[%clk 0:03:08.5]} 12... Nc6
{[%clk 0:02:41.5]} 13. Rxc6 {[%clk 0:03:08.9]} 13... bxc6 {[%clk 0:02:38.7]} 14.
Qxd4 {[%clk 0:03:08.8]} 14... f6 {[%clk 0:02:37.8]} 15. e3 {[%clk 0:02:59.4]}
15... Qe7 {[%clk 0:02:32.6]} 16. Bd3 {[%clk 0:02:54.6]} 16... Be6 {[%clk
0:02:32.5]} 17. O-O {[%clk 0:02:50.8]} 17... O-O {[%clk 0:02:32]} 18. Rc1 {[%clk
0:02:51.3]} 18... Rab8 {[%clk 0:02:23.2]} 19. Nb3 {[%clk 0:02:50.8]} 19... Rb6
{[%clk 0:02:13.8]} 20. h4 {[%clk 0:02:50.7]} 20... gxh4 {[%clk 0:02:07.8]} 21.
Qxh4 {[%clk 0:02:47.4]} 21... Qg7 {[%clk 0:02:06.8]} 22. Nd4 {[%clk 0:02:42.5]}
22... Bd7 {[%clk 0:02:01.2]} 23. Bf4 {[%clk 0:02:43.4]} 23... Qg4 {[%clk
0:01:49.4]} 24. Qxh6 {[%clk 0:02:41.5]} 24... Rf7 {[%clk 0:01:50]} 25. f3 {[%clk
0:02:16.9]} 25... Qg7 {[%clk 0:01:44.6]} 26. Qh5 {[%clk 0:02:09.1]} 26... Rb2
{[%clk 0:01:44.3]} 27. Rc2 {[%clk 0:02:09.9]} 27... Rxc2 {[%clk 0:01:40.5]} 28.
Bxc2 {[%clk 0:02:09.6]} 28... c5 {[%clk 0:01:41.7]} 29. Nf5 {[%clk 0:02:10.5]}
29... Bxf5 {[%clk 0:01:41.9]} 30. Bxf5 {[%clk 0:02:11.5]} 30... Re7 {[%clk
0:01:42.4]} 31. Kf2 {[%clk 0:01:57]} 31... c4 {[%clk 0:01:39]} 32. Bh6 {[%clk
0:01:55.1]} 32... Qf7 {[%clk 0:01:34.4]} 33. Qg4+ {[%clk 0:01:48.3]} 33... Kh8
{[%clk 0:01:35.6]} 34. Bg6 {[%clk 0:01:38.1]} 34... Qe6 {[%clk 0:01:34.9]} 35.
Qh5 {[%clk 0:01:38.6]} 35... Kg8 {[%clk 0:01:32.3]} 36. Bf5 {[%clk 0:01:35.6]}
36... Qf7 {[%clk 0:01:33.1]} 37. Qg4+ {[%clk 0:01:35.6]} 37... Kh8 {[%clk
0:01:34.3]} 38. Qh4 {[%clk 0:01:28.5]} 38... Kg8 {[%clk 0:01:34.3]} 39. Qd4
{[%clk 0:01:24.4]} 39... c6 {[%clk 0:01:31.1]} 40. g4 {[%clk 0:01:23.6]} 40...
Rb7 {[%clk 0:01:27.8]} 41. g5 {[%clk 0:01:07.1]} 41... Qh5 {[%clk 0:01:19]} 42.
Be6+ {[%clk 0:01:01.6]} 42... Kh7 {[%clk 0:01:20.3]} 43. Bf5+ {[%clk 0:00:58.4]}
43... Kg8 {[%clk 0:01:21]} 44. Kg3 {[%clk 0:00:46.2]} 44... fxg5 {[%clk
0:01:13.3]} 45. Be6+ {[%clk 0:00:30.4]} 45... Kh7 {[%clk 0:01:14.4]} 46. Bf5+
{[%clk 0:00:31.5]} 46... Kg8 {[%clk 0:01:08.8]} 47. Be6+ {[%clk 0:00:28]} 47...
Kh7 {[%clk 0:01:09.9]} 48. Bf5+ {[%clk 0:00:21]} 48... Kg8 {[%clk 0:01:10]} 49.
Be6+ {[%clk 0:00:20.5]} 49... Kh7 {[%clk 0:01:10.4]} 50. Bf8 {[%clk 0:00:19.8]}
50... Qh4+ {[%clk 0:00:42.9]} 51. Qxh4+ {[%clk 0:00:20.2]} 51... gxh4+ {[%clk
0:00:44.8]} 52. Kxh4 {[%clk 0:00:22.1]} 52... c3 {[%clk 0:00:45.8]} 53. Bf5+
{[%clk 0:00:20.8]} 53... Kg8 {[%clk 0:00:46.3]} 54. Bc5 {[%clk 0:00:20.3]} 54...
Rb2 {[%clk 0:00:43.5]} 55. Bd4 {[%clk 0:00:20.9]} 55... Rh2+ {[%clk 0:00:43.1]}
56. Kg3 {[%clk 0:00:21.5]} 56... c2 {[%clk 0:00:43.2]} 57. Bb2 {[%clk
0:00:20.5]} 57... Rd2 {[%clk 0:00:41.8]} 58. f4 {[%clk 0:00:19.4]} 58... Kf7
{[%clk 0:00:40.8]} 59. Kf3 {[%clk 0:00:19.2]} 59... c5 {[%clk 0:00:42.2]} 60. e4
{[%clk 0:00:20]} 60... d4 {[%clk 0:00:41.2]} 61. e5 {[%clk 0:00:21.3]} 61... c4
{[%clk 0:00:35.8]} 62. Ba3 {[%clk 0:00:21.1]} 62... d3 {[%clk 0:00:32.2]} 63.
e6+ {[%clk 0:00:22.2]} 63... Kf6 {[%clk 0:00:33.6]} 64. e7 {[%clk 0:00:22.5]}
64... Re2 {[%clk 0:00:31.4]} 65. Be4 {[%clk 0:00:23.5]} 65... c1=Q {[%clk
0:00:10.7]} 66. e8=Q {[%clk 0:00:15.7]} 66... Qe3+ {[%clk 0:00:10.8]} 67. Kg4
{[%clk 0:00:16.8]} 67... Rg2+ {[%clk 0:00:12]} 68. Bxg2 {[%clk 0:00:17.4]} 68...
Qxe8 {[%clk 0:00:13]} 69. Bb2+ {[%clk 0:00:19.3]} 69... Kf7 {[%clk 0:00:13.7]}
70. Be5 {[%clk 0:00:20.4]} 70... Qe6+ {[%clk 0:00:14.8]} 71. Kg5 {[%clk
0:00:21.8]} 71... Qg6+ {[%clk 0:00:15.6]} 0-1